fUST/lending_fUST_20250611
["ID","MTS","AMOUNT","RATE_DAILY","PERIOD"]
[365313927,1749594644878,-270.0,0.00022739,4]
[365313929,1749594644887,-1039.61,0.00022739,4]
[365313931,1749594644896,-626.63,0.00022739,4]
[365313933,1749594644905,-3330.9,0.00022746,2]
[365313935,1749594644913,-160.0,0.00022797,2]
[365313937,1749594644923,-229.6792923,0.00022797,2]
[365313939,1749594644932,-842.5625,0.00022797,2]
[365313941,1749594644941,-424.12530924,0.00022797,2]
[365313943,1749594644951,-834.9046531,0.00022797,2]
[365313945,1749594644959,-160.0,0.00022797,2]
[365313947,1749594644969,-1900.9145731,0.00022831,8]
[365313949,1749594644979,-420.0,0.00022837,2]
[365313950,1749594644988,-500.0,0.00022893,2]
[365313953,1749594644998,-500.0,0.00022893,2]
[365313954,1749594645007,-502.85157421,0.00022893,2]
[365313957,1749594645017,-500.0,0.00022893,2]
[365313959,1749594645027,-500.0,0.00022893,2]
[365313960,1749594645036,-502.14852776,0.00022893,2]
[365313962,1749594645045,-500.0,0.00022893,2]
[365313964,1749594645054,-501.89640537,0.00022893,2]
[365313966,1749594645064,-500.0,0.00022893,2]
[365313968,1749594645074,-500.0,0.00022893,2]
[365313970,1749594645083,-500.0,0.00022893,2]
[365313971,1749594645093,-500.0,0.00022893,2]
[365313972,1749594645103,-600.0,0.00022893,2]
[365313973,1749594645116,-1718.14,0.000229,7]
[365313974,1749594645127,-172.91563983,0.00022912,2]
[365313975,1749594645136,-420.0,0.00022918,2]
[365313976,1749594645146,-1900.9145731,0.00022934,8]
[365313977,1749594645156,-380.0,0.00022945,2]
[365313978,1749594645166,-460.0,0.00023013,4]
[365313979,1749594645175,-460.0,0.00023013,4]
[365313980,1749594645185,-210.0,0.00023013,4]
[365313981,1749594645195,-460.0,0.00023013,4]
[365313982,1749594645205,-460.0,0.00023013,4]
[365313983,1749594645214,-460.0,0.00023013,4]
[365313984,1749594645224,-460.0,0.00023013,4]
[365313985,1749594645234,-460.0,0.00023013,4]
[365313986,1749594645243,-460.0,0.00023013,4]
[365313987,1749594645254,-1231.13,0.00023013,4]
[365313988,1749594645264,-460.0,0.00023013,4]
[365313990,1749594645274,-556.37,0.00023013,4]
[365313992,1749594645283,-460.0,0.00023013,4]
[365313994,1749594645293,-2622.6,0.00023013,4]
[365313996,1749594645303,-460.0,0.00023013,4]
[365313998,1749594645312,-460.0,0.00023013,4]
[365314000,1749594645322,-460.0,0.00023013,4]
[365314002,1749594645331,-1063.8,0.00023013,4]
[365314004,1749594645340,-518.51,0.00023013,4]
[365314006,1749594645351,-1893.58,0.00023013,4]
[365314007,1749594645364,-567.2,0.00023013,4]
[365314009,1749594645373,-605.4,0.00023013,4]
[365314012,1749594645383,-460.0,0.00023013,4]
[365314013,1749594645392,-460.0,0.00023013,4]
[365314015,1749594645402,-460.0,0.00023013,4]
[365314018,1749594645412,-460.0,0.00023013,4]
[365314019,1749594645421,-460.96,0.00023013,4]
[365314022,1749594645432,-500.0,0.00023013,4]
[365314024,1749594645442,-2464.91,0.00023013,4]
[365314026,1749594645452,-460.0,0.00023013,4]
[365314028,1749594645462,-1176.0,0.00023013,4]
[365314029,1749594645471,-502.82,0.00023013,4]
[365314032,1749594645481,-1763.81,0.00023013,4]
[365314034,1749594645490,-2005.72,0.00023013,4]
[365314035,1749594645501,-460.0,0.00023013,2]
[365314038,1749594645511,-460.0,0.00023013,4]
[365314040,1749594645520,-460.0,0.00023013,4]
[365314042,1749594645530,-1067.74,0.00023013,4]
[365314044,1749594645539,-2881.0,0.00023013,4]
[365314046,1749594645549,-460.0,0.00023013,4]
[365314048,1749594645559,-460.0,0.00023013,4]
[365314050,1749594645569,-2062.73,0.00023013,4]
[365314052,1749594645578,-824.67,0.00023013,4]
[365314054,1749594645588,-2352.25,0.00023013,4]
[365314056,1749594645598,-1381.18,0.00023013,4]
[365314058,1749594645607,-460.0,0.00023013,4]
[365314060,1749594645618,-243.90499062,0.00023013,4]
[365314071,1749594645714,-460.0,0.00023013,4]
[365314073,1749594645724,-953.4,0.00023013,4]
[365314075,1749594645734,-460.0,0.00023013,4]
[365314077,1749594645743,-484.64,0.00023013,4]
[365314079,1749594645753,-1039.61,0.00023013,4]
[365314081,1749594645763,-626.63,0.00023013,4]
[365314083,1749594645774,-430.0,0.00023013,2]
[365314085,1749594645784,-157.92258704,0.00023016,2]
[365314087,1749594645793,-1900.9145731,0.00023038,8]
[365314089,1749594645803,-430.0,0.00023056,2]
[365314091,1749594645812,-1500.0,0.00023068,2]
[365314093,1749594645823,-54278.7,0.000231,2]
[365314095,1749594645832,-1900.9145731,0.00023141,8]
[365314097,1749594645842,-3369.55488684,0.00023156,2]
[365314099,1749594645851,-69574.25,0.000232,7]
[365314101,1749594645862,-1900.9145731,0.00023245,8]
[365314103,1749594645871,-800.0,0.00023256,2]
[365314105,1749594645880,-378.5,0.00023287,4]
[365314107,1749594645890,-542.91,0.00023287,4]
[365314109,1749594645899,-460.0,0.00023287,4]
[365314111,1749594645910,-190.0,0.00023287,4]
[365314113,1749594645919,-460.0,0.00023287,4]
[365314116,1749594645929,-460.0,0.00023287,4]
[365314118,1749594645938,-460.0,0.00023287,4]
[365314119,1749594645948,-460.0,0.00023287,4]
[365314122,1749594645959,-1231.13,0.00023287,4]
[365314125,1749594645968,-460.0,0.00023287,4]
[365314128,1749594645977,-556.37,0.00023287,4]
[365314129,1749594645986,-460.0,0.00023287,4]
[365314132,1749594645996,-2622.6,0.00023287,4]
[365314135,1749594646006,-460.0,0.00023287,4]
[365314137,1749594646015,-460.0,0.00023287,4]
[365314138,1749594646025,-460.0,0.00023287,4]
[365314141,1749594646035,-1063.8,0.00023287,4]
[365314142,1749594646045,-518.51,0.00023287,4]
[365314143,1749594646055,-1893.58,0.00023287,4]
[365314145,1749594646064,-567.2,0.00023287,4]
[365314146,1749594646074,-605.4,0.00023287,4]
[365314147,1749594646084,-460.0,0.00023287,4]
[365314148,1749594646094,-460.0,0.00023287,4]
[365314149,1749594646103,-460.0,0.00023287,4]
[365314150,1749594646113,-460.0,0.00023287,4]
[365314151,1749594646123,-460.96,0.00023287,4]
[365314152,1749594646133,-500.0,0.00023287,4]
[365314153,1749594646143,-2464.91,0.00023287,4]
[365314154,1749594646154,-460.0,0.00023287,4]
[365314155,1749594646169,-1176.0,0.00023287,4]
[365314156,1749594646186,-502.82,0.00023287,4]
[365314157,1749594646196,-1763.81,0.00023287,4]
[365314158,1749594646206,-2005.72,0.00023287,4]
[365314159,1749594646216,-460.0,0.00023287,2]
[365314160,1749594646226,-320.0,0.00023287,4]
[365314161,1749594646236,-274.09,0.00023287,4]
[365314162,1749594646245,-1067.74,0.00023287,4]
[365314163,1749594646255,-2881.0,0.00023287,4]
[365314164,1749594646264,-300.0,0.00023287,4]
[365314165,1749594646275,-460.0,0.00023287,4]
[365314166,1749594646284,-2062.73,0.00023287,4]
[365314167,1749594646294,-824.67,0.00023287,4]
[365314168,1749594646305,-2352.25,0.00023287,4]
[365314169,1749594646315,-1381.18,0.00023287,4]
[365314170,1749594646325,-460.0,0.00023287,4]
[365314172,1749594646334,-460.0,0.00023287,4]
[365314174,1749594646346,-953.4,0.00023287,4]
[365314176,1749594646355,-460.0,0.00023287,4]
[365314178,1749594646366,-1039.61,0.00023287,4]
[365314179,1749594646375,-626.63,0.00023287,4]
[365314181,1749594646386,-670.73,0.000233,7]
[365314183,1749594646395,-151.0,0.000233,6]
[365314185,1749594646405,-1900.9145731,0.00023348,9]
[365314187,1749594646415,-1000.0,0.00023441,2]
[365314189,1749594646425,-1000.0,0.00023441,2]
[365314191,1749594646435,-1000.0,0.00023441,2]
[365314193,1749594646445,-1000.0,0.00023441,2]
[365314195,1749594646455,-1200.0,0.00023441,2]
[365314196,1749594646465,-1900.9145731,0.00023452,9]
[365314197,1749594646475,-1900.9145731,0.00023555,9]
[365314198,1749594646485,-460.0,0.00023561,4]
[365314199,1749594646494,-460.0,0.00023561,4]
[365314200,1749594646504,-460.0,0.00023561,4]
[365314201,1749594646514,-460.0,0.00023561,4]
[365314202,1749594646523,-460.0,0.00023561,4]
[365314203,1749594646533,-1231.13,0.00023561,4]
[365314204,1749594646543,-460.0,0.00023561,4]
[365314205,1749594646553,-556.37,0.00023561,4]
[365314206,1749594646562,-460.0,0.00023561,4]
[365314207,1749594646572,-2622.6,0.00023561,4]
[365314208,1749594646582,-460.0,0.00023561,4]
[365314209,1749594646592,-460.0,0.00023561,4]
[365314210,1749594646601,-590.0,0.00023561,4]
[365314211,1749594646611,-1063.8,0.00023561,4]
[365314212,1749594646621,-518.51,0.00023561,4]
[365314213,1749594646631,-1893.58,0.00023561,4]
[365314214,1749594646641,-567.2,0.00023561,4]
[365314215,1749594646650,-605.4,0.00023561,4]
[365314216,1749594646660,-460.0,0.00023561,4]
[365314217,1749594646669,-460.0,0.00023561,4]
[365314218,1749594646678,-460.0,0.00023561,4]
[365314219,1749594646688,-435.66378957,0.00023561,4]
[365314220,1749594646697,-460.96,0.00023561,4]
[365314221,1749594646706,-500.0,0.00023561,4]
[365314223,1749594646715,-2464.91,0.00023561,4]
[365314225,1749594646724,-476.22,0.00023561,4]
[365314227,1749594646733,-1176.0,0.00023561,4]
[365314228,1749594646743,-502.82,0.00023561,4]
[365314229,1749594646751,-1763.81,0.00023561,4]
[365314230,1749594646761,-2005.72,0.00023561,4]
[365314231,1749594646770,-460.0,0.00023561,2]
[365314232,1749594646780,-1067.74,0.00023561,4]
[365314233,1749594646790,-2881.0,0.00023561,4]
[365314234,1749594646799,-460.0,0.00023561,4]
[365314235,1749594646808,-2062.73,0.00023561,4]
[365314236,1749594646819,-824.67,0.00023561,4]
[365314237,1749594646828,-2352.25,0.00023561,4]
[365314238,1749594646838,-1381.18,0.00023561,4]
[365314239,1749594646847,-460.0,0.00023561,4]
[365314240,1749594646856,-460.0,0.00023561,4]
[365314241,1749594646868,-953.4,0.00023561,4]
[365314242,1749594646881,-395.22,0.00023561,4]
[365314243,1749594646890,-1039.61,0.00023561,4]
[365314244,1749594646900,-626.63,0.00023561,4]
[365314245,1749594646909,-258.57185496,0.00023573,2]
[365314246,1749594646919,-504.15916561,0.00023573,2]
[365314247,1749594646928,-500.0,0.00023573,2]
[365314248,1749594646938,-500.0,0.00023573,2]
[365314249,1749594646948,-500.0,0.00023573,2]
[365314250,1749594646957,-500.0,0.00023573,2]
[365314251,1749594646967,-500.0,0.00023573,2]
[365314252,1749594646976,-500.0,0.00023573,2]
[365314253,1749594646986,-500.0,0.00023573,2]
[365314254,1749594646995,-500.0,0.00023573,2]
[365314255,1749594647004,-500.0,0.00023573,2]
[365314256,1749594647013,-500.0,0.00023573,2]
[365314257,1749594647023,-500.0,0.00023596,2]
[365314258,1749594647032,-3901.17280836,0.00023596,2]
[365314259,1749594647041,-500.0,0.00023596,2]
[365314260,1749594647051,-500.0,0.00023596,2]
[365314261,1749594647059,-3901.17280836,0.00023596,2]
[365314262,1749594647069,-3901.17280836,0.00023596,2]
[365314263,1749594647078,-500.0,0.00023596,2]
[365314264,1749594647087,-3901.17280836,0.00023596,2]
[365314265,1749594647097,-3901.17280836,0.00023596,2]
[365314266,1749594647106,-3901.17280836,0.00023596,2]
[365314267,1749594647117,-3901.17280836,0.00023596,2]
[365314268,1749594647126,-350.84097431,0.00023596,2]
[365314269,1749594647135,-3901.17280836,0.00023596,2]
[365314270,1749594647145,-500.0,0.00023596,2]
[365314271,1749594647154,-500.0,0.00023596,2]
[365314272,1749594647163,-3901.17280836,0.00023596,2]
[365314273,1749594647173,-3901.17280836,0.00023596,2]
[365314274,1749594647183,-3901.17280836,0.00023596,2]
[365314275,1749594647192,-3901.17280836,0.00023596,2]
[365314276,1749594647202,-3901.17280836,0.00023596,2]
[365314277,1749594647212,-3901.17280836,0.00023596,2]
[365314278,1749594647221,-500.0,0.00023596,2]
[365314279,1749594647231,-3901.17280836,0.00023596,2]
[365314280,1749594647240,-3901.17280836,0.00023596,2]
[365314281,1749594647250,-4057.21972069,0.00023596,2]
[365314282,1749594647260,-4057.21972069,0.00023596,2]
[365314283,1749594647270,-4057.21972069,0.00023596,2]
[365314284,1749594647280,-4057.21972069,0.00023596,2]
[365314285,1749594647289,-4057.21972069,0.00023596,2]
[365314286,1749594647299,-4057.21972069,0.00023596,2]
[365314287,1749594647309,-4057.21972069,0.00023596,2]
[365314288,1749594647319,-4057.21972069,0.00023596,2]
[365314289,1749594647329,-4057.21972069,0.00023596,2]
[365314290,1749594647339,-3903.70329882,0.00023596,2]
[365314291,1749594647352,-3903.70329882,0.00023596,2]
[365314292,1749594647365,-3903.70329882,0.00023596,2]
[365314293,1749594647375,-3903.70329882,0.00023596,2]
[365314294,1749594647386,-3903.70329882,0.00023596,2]
[365314295,1749594647395,-3903.70329882,0.00023596,2]
[365314296,1749594647404,-121411.59591787,0.00023597,2]
[365314297,1749594647414,-151.0,0.00023599,7]
[365314298,1749594647424,-37050.24008057,0.00023613,7]
[365314299,1749594647435,-244.04240784,0.00023616,2]
[365314300,1749594647444,-151.0,0.00023633,2]
[365314301,1749594647454,-5000.0,0.00023633,2]
[365314302,1749594647464,-151.0,0.00023633,2]
[365314303,1749594647474,-151.0,0.00023633,2]
[365314304,1749594647484,-151.0,0.00023633,2]
[365314305,1749594647494,-300.0,0.00023633,2]
[365314306,1749594647503,-1688.0,0.00023633,2]
[365314307,1749594647513,-151.0,0.00023633,2]
[365314308,1749594647523,-204.71631625,0.00023633,2]
[365314309,1749594647532,-1500.0,0.00023633,2]
[365314310,1749594647542,-151.0,0.00023633,2]
[365314311,1749594647551,-1500.0,0.00023633,2]
[365314312,1749594647639,-151.0,0.00023633,2]
[365314313,1749594647649,-1500.0,0.00023633,2]
[365314314,1749594647657,-1500.0,0.00023633,2]
[365314315,1749594647667,-2500.0,0.00023633,2]
[365314316,1749594647677,-226.76390347,0.00023633,2]
[365314317,1749594647686,-1500.0,0.00023633,2]
[365314318,1749594647696,-2500.0,0.00023633,2]
[365314319,1749594647705,-207.4,0.00023633,2]
[365314320,1749594647715,-2500.0,0.00023633,2]
[365314321,1749594647725,-15622.32651195,0.00023635,7]
[365314322,1749594647735,-1900.9145731,0.00023659,9]
[365314323,1749594647744,-1750.456,0.00023688,2]
[365314324,1749594647754,-4163.62,0.00023694,2]
[365314325,1749594647764,-159.47968186,0.00023699,2]
[365314326,1749594647773,-157.60310324,0.00023743,2]
[365314327,1749594647783,-1900.9145731,0.00023762,9]
[365314328,1749594647793,-4772.04,0.00023766,3]
[365314329,1749594647802,-300.0,0.00023773,2]
[365314330,1749594647812,-1812.17805154,0.0002378,2]
[365314331,1749594647822,-64927.73669926,0.00023799,2]
[365314332,1749594647831,-57732.55432832,0.000238,2]
[365314333,1749594647841,-67216.51993357,0.000238,2]
[365314334,1749594647851,-254073.21846005,0.000238,3]
[365314335,1749594647863,-151.0,0.00023835,7]
[365314336,1749594647872,-151.0,0.00023835,7]
[365314337,1749594647882,-200.709546,0.00023835,7]
[365314338,1749594647891,-574.327009,0.00023835,7]
[365314339,1749594647901,-574.327009,0.00023835,7]
[365314340,1749594647912,-460.0,0.00023835,4]
[365314341,1749594647922,-460.0,0.00023835,4]
[365314342,1749594647932,-460.0,0.00023835,4]
[365314343,1749594647942,-460.0,0.00023835,4]
[365314344,1749594647952,-460.0,0.00023835,4]
[365314345,1749594647962,-1231.13,0.00023835,4]
[365314346,1749594647971,-460.0,0.00023835,4]
[365314347,1749594647981,-556.37,0.00023835,4]
[365314348,1749594647991,-460.0,0.00023835,4]
[365314349,1749594648001,-2622.6,0.00023835,4]
[365314350,1749594648011,-460.0,0.00023835,4]
[365314351,1749594648021,-460.0,0.00023835,4]
[365314352,1749594648031,-1063.8,0.00023835,4]
[365314353,1749594648041,-518.51,0.00023835,4]
[365314354,1749594648051,-1893.58,0.00023835,4]
[365314355,1749594648061,-567.2,0.00023835,4]
[365314356,1749594648071,-605.4,0.00023835,4]
[365314357,1749594648081,-590.0,0.00023835,4]
[365314358,1749594648091,-159.6635329,0.00023835,4]
[365314359,1749594648101,-460.0,0.00023835,4]
[365314360,1749594648113,-460.96,0.00023835,4]
[365314361,1749594648123,-191.0413656,0.00023835,4]
[365314362,1749594648133,-2066.43534937,0.00023835,4]
[365314363,1749594648252,-398.47465063,0.00023835,4]
[365314364,1749594648262,-1176.0,0.00023835,4]
[365314365,1749594648272,-502.82,0.00023835,4]
[365314366,1749594648282,-1763.81,0.00023835,4]
[365314367,1749594648292,-2005.72,0.00023835,4]
[365314368,1749594648302,-460.0,0.00023835,2]
[365314369,1749594648312,-1067.74,0.00023835,4]
[365314370,1749594648322,-2881.0,0.00023835,4]
[365314371,1749594648332,-460.0,0.00023835,4]
[365314372,1749594648343,-2062.73,0.00023835,4]
[365314373,1749594648356,-824.67,0.00023835,4]
[365314374,1749594648368,-2352.25,0.00023835,4]
[365314375,1749594648379,-1381.18,0.00023835,4]
[365314376,1749594648389,-460.0,0.00023835,4]
[365314377,1749594648400,-460.0,0.00023835,4]
[365314378,1749594648410,-953.4,0.00023835,4]
[365314379,1749594648420,-1039.61,0.00023835,4]
[365314380,1749594648432,-626.63,0.00023835,4]
[365314381,1749594648442,-151.0,0.00023858,7]
[365314382,1749594648453,-1900.9145731,0.00023866,10]
[365314383,1749594648462,-2655.13282632,0.00023866,3]
[365314384,1749594648480,-1221.58743175,0.00023866,3]
[365314385,1749594648649,-514.8910362,0.00020368,2]
[365314386,1749594648659,-460.0,0.00021095,4]
[365314387,1749594648668,-151.0,0.00023599,7]
[365314388,1749594648678,-211.60959783,0.000238,3]
[365314389,1749594648688,-4123.27974193,0.00023866,3]
[365314390,1749594648697,-8000.0,0.00023929,3]
[365314391,1749594648707,-1900.9145731,0.00023969,10]
[365314392,1749594648716,-880.02282225,0.00023989,2]
[365314393,1749594648728,-145.49751022,0.00023989,2]
[365314394,1749594648739,-1500.0,0.00023989,2]
[365314395,1749594648748,-669.22919566,0.00023989,2]
[365314396,1749594648760,-336.26733391,0.00023989,2]
[365314397,1749594648772,-494.50347043,0.00023989,2]
[365314398,1749594648782,-1072.79737517,0.00023989,2]
[365314399,1749594648793,-727.20262483,0.00023989,2]
[365314400,1749594648803,-160.0,0.00024,7]
[365314401,1749594648812,-229.6792923,0.00024,7]
[365314402,1749594648822,-834.9046531,0.00024,7]
[365314403,1749594648832,-46.70522673,0.00024027,2]
[365314404,1749594648843,-112.84343961,0.00024027,2]
[365314405,1749594648852,-159.47968186,0.00024027,2]
[365314406,1749594648863,-151.0,0.00024032,7]
[365314407,1749594648873,-6692.91934419,0.00024042,3]
[365314408,1749594648884,-916.48818943,0.00024042,3]
[365314409,1749594648895,-1390.59246638,0.00024042,3]
[365314410,1749594648905,-203.87427644,0.00024072,10]
[365314411,1749594648916,-1697.04029666,0.00024072,10]
[365314412,1749594648926,-439.0150147,0.00024075,2]
[365314413,1749594648935,-1718.14,0.000241,7]
[365314414,1749594648944,-460.0,0.00024109,4]
[365314415,1749594648954,-240.0,0.00024109,4]
[365314416,1749594648963,-240.0,0.00024109,4]
[365314417,1749594648973,-460.0,0.00024109,4]
[365314418,1749594648982,-460.0,0.00024109,4]
[365314419,1749594648991,-1231.13,0.00024109,4]
[365314420,1749594649000,-556.37,0.00024109,4]
[365314421,1749594649010,-2622.6,0.00024109,4]
[365314422,1749594649019,-460.0,0.00024109,4]
[365314423,1749594649028,-460.0,0.00024109,4]
[365314424,1749594649037,-1063.8,0.00024109,4]
[365314425,1749594649046,-518.51,0.00024109,4]
[365314426,1749594649056,-1893.58,0.00024109,4]
[365314427,1749594649065,-567.2,0.00024109,4]
[365314428,1749594649074,-605.4,0.00024109,4]
[365314429,1749594649083,-460.0,0.00024109,4]
[365314430,1749594649093,-460.96,0.00024109,4]
[365314431,1749594649102,-2464.91,0.00024109,4]
[365314432,1749594649114,-1176.0,0.00024109,4]
[365314433,1749594649124,-502.82,0.00024109,4]
[365314434,1749594649133,-1763.81,0.00024109,4]
[365314435,1749594649143,-2005.72,0.00024109,4]
[365314436,1749594649152,-460.0,0.00024109,2]
[365314437,1749594649162,-1067.74,0.00024109,4]
[365314438,1749594649172,-2881.0,0.00024109,4]
[365314439,1749594649182,-460.0,0.00024109,4]
[365314440,1749594649191,-824.67,0.00024109,4]
[365314441,1749594649200,-2062.73,0.00024109,4]
[365314442,1749594649210,-2352.25,0.00024109,4]
[365314443,1749594649219,-151.0,0.00024109,7]
[365314444,1749594649313,-1381.18,0.00024109,4]
[365314445,1749594649323,-460.0,0.00024109,4]
[365314446,1749594649333,-460.0,0.00024109,4]
[365314447,1749594649342,-953.4,0.00024109,4]
[365314448,1749594649355,-1039.61,0.00024109,4]
[365314449,1749594649366,-626.63,0.00024109,4]
[365314450,1749594649376,-1000.0,0.00024121,2]
[365314451,1749594649385,-1000.0,0.00024121,2]
[365314452,1749594649396,-1000.0,0.00024121,2]
[365314453,1749594649405,-1000.0,0.00024121,2]
[365314454,1749594649415,-500.0,0.00024121,2]
[365314455,1749594649424,-1000.0,0.00024121,2]
[365314456,1749594649434,-1900.9145731,0.00024176,10]
[365314457,1749594649444,-5000.0,0.00024181,2]
[365314458,1749594649453,-151.0,0.00024181,2]
[365314459,1749594649463,-5000.0,0.00024186,3]
[365314460,1749594649472,-54278.7,0.000242,2]
[365314461,1749594649482,-151.0,0.00024205,7]
[365314462,1749594649491,-439.0150148,0.00024206,2]
[365314463,1749594649501,-1900.9145731,0.00024279,10]
[365314464,1749594649510,-800.0,0.00024352,2]
[365314465,1749594649520,-151.0,0.00024379,7]
[365314466,1749594649530,-1900.9145731,0.00024383,11]
[365314467,1749594649540,-240.0,0.00024383,4]
[365314468,1749594649549,-460.0,0.00024383,4]
[365314469,1749594649559,-460.0,0.00024383,4]
[365314470,1749594649568,-1231.13,0.00024383,4]
[365314471,1749594649578,-556.37,0.00024383,4]
[365314472,1749594649587,-2622.6,0.00024383,4]
[365314473,1749594649597,-240.0,0.00024383,4]
[365314474,1749594649607,-240.0,0.00024383,4]
[365314475,1749594649618,-1063.8,0.00024383,4]
[365314476,1749594649628,-518.51,0.00024383,4]
[365314477,1749594649637,-1893.58,0.00024383,4]
[365314478,1749594649646,-567.2,0.00024383,4]
[365314479,1749594649656,-605.4,0.00024383,4]
[365314480,1749594649665,-387.46,0.00024383,4]
[365314481,1749594649674,-460.96,0.00024383,4]
[365314482,1749594649683,-2464.91,0.00024383,4]
[365314483,1749594649693,-1176.0,0.00024383,4]
[365314484,1749594649702,-502.82,0.00024383,4]
[365314485,1749594649711,-1763.81,0.00024383,4]
[365314486,1749594649720,-2005.72,0.00024383,4]
[365314487,1749594649729,-460.0,0.00024383,2]
[365314488,1749594649739,-1067.74,0.00024383,4]
[365314489,1749594649748,-2881.0,0.00024383,4]
[365314490,1749594649757,-240.0,0.00024383,4]
[365314491,1749594649767,-824.67,0.00024383,4]
[365314492,1749594649776,-2062.73,0.00024383,4]
[365314493,1749594649786,-2352.25,0.00024383,4]
[365314494,1749594649797,-1381.18,0.00024383,4]
[365314495,1749594649806,-240.0,0.00024383,4]
[365314496,1749594649815,-460.0,0.00024383,4]
[365314497,1749594649825,-953.4,0.00024383,4]
[365314498,1749594649834,-1039.61,0.00024383,4]
[365314499,1749594649844,-626.63,0.00024383,4]
[365314500,1749594649853,-69574.25,0.000244,7]
[365314501,1749594649864,-151.0,0.000244,7]
[365314502,1749594649873,-151.0,0.000244,7]
[365314503,1749594649883,-2880.884193,0.000244,2]
[365314504,1749594649892,-2880.884193,0.000244,2]
[365314505,1749594649902,-357.900001,0.000244,7]
[365314506,1749594649911,-357.900001,0.000244,7]
[365314507,1749594649920,-1347.69737,0.00024401,3]
[365314508,1749594649930,-7825.36708508,0.00024449,2]
[365314509,1749594649940,-5000.0,0.00024449,2]
[365314510,1749594649950,-5000.0,0.00024449,2]
[365314511,1749594649959,-1900.9145731,0.00024486,11]
[365314512,1749594649968,-129776.69,0.00024487,11]
[365314513,1749594649977,-10208.0,0.000245,3]
[365314514,1749594649986,-160.0,0.000245,3]
[365314515,1749594649995,-160.0,0.000245,3]
[365314516,1749594650005,-160.0,0.000245,3]
[365314517,1749594650014,-229.6792923,0.000245,3]
[365314518,1749594650024,-834.9046531,0.000245,3]
[365314519,1749594650033,-842.5625,0.000245,3]
[365314520,1749594650043,-800.0,0.00024506,2]
[365314521,1749594650054,-2000.0,0.00024537,2]
[365314522,1749594650063,-480.129086,0.00024537,2]
[365314523,1749594650072,-2400.0,0.00024537,2]
[365314524,1749594650081,-168.19497638,0.00024551,2]
[365314525,1749594650091,-196.75563594,0.00024551,2]
[365314526,1749594650100,-151.0,0.00024553,7]
[365314527,1749594650110,-2950.35682324,0.00024557,2]
[365314528,1749594650121,-2950.35682316,0.00024587,2]
[365314529,1749594650130,-1900.9145731,0.0002459,11]
[365314530,1749594650139,-151.0,0.000246,7]
[365314531,1749594650149,-20002.558338,0.000246,2]
[365314532,1749594650158,-574.327009,0.000246,7]
[365314533,1749594650168,-574.327009,0.000246,7]
[365314534,1749594650177,-1215.05,0.000246,2]
[365314535,1749594650186,-670.73,0.000246,7]
[365314536,1749594650196,-151.0,0.000246,8]
[365314537,1749594650205,-680.79844119,0.000246,30]
[365314538,1749594650215,-4173.0,0.00024606,2]
[365314539,1749594650224,-2950.35682316,0.00024618,2]
[365314540,1749594650233,-430.0,0.00024631,2]
[365314541,1749594650242,-4996.34,0.00024641,2]
[365314542,1749594650252,-2950.35682316,0.00024648,2]
[365314543,1749594650262,-17300.31493004,0.0002465,60]
[365314544,1749594650271,-151.0,0.0002465,7]
[365314545,1749594650280,-12654.51870498,0.0002465,7]
[365314546,1749594650290,-107051.95360062,0.0002465,2]